[Event "Rapid della Domenica"]
[Site "Chess.com"]
[Date "2020.05.03"]
[Round "2"]
[White "sergiodone"]
[Black "OMatteoWuO"]
[Result "0-1"]
[WhiteElo "1489"]
[BlackElo "1174"]
[TimeControl "720+3"]
[EndTime "6:51:56 PDT"]
[Termination "OMatteoWuO ha vinto per tempo"]

1. e4 {[%clk 0:12:02.9]} 1... c5 {[%clk 0:11:59.3]} 2. Nf3 {[%clk 0:11:53]} 2...
Nc6 {[%clk 0:11:57.9]} 3. c3 {[%clk 0:11:50.3]} 3... Nf6 {[%clk 0:11:51.6]} 4.
Qc2 {[%clk 0:11:51]} 4... d6 {[%clk 0:11:46.4]} 5. h3 {[%clk 0:11:48.5]} 5... e6
{[%clk 0:11:37]} 6. d4 {[%clk 0:11:48.4]} 6... cxd4 {[%clk 0:11:35.9]} 7. cxd4
{[%clk 0:11:49.3]} 7... Bd7 {[%clk 0:11:34.2]} 8. Nc3 {[%clk 0:11:50.1]} 8... a6
{[%clk 0:11:24]} 9. a3 {[%clk 0:11:51.1]} 9... Be7 {[%clk 0:11:18.9]} 10. Bd3
{[%clk 0:11:48.3]} 10... Rc8 {[%clk 0:11:09.3]} 11. Qe2 {[%clk 0:11:48.2]} 11...
O-O {[%clk 0:11:09.1]} 12. O-O {[%clk 0:11:49.1]} 12... b5 {[%clk 0:11:02.3]}
13. Re1 {[%clk 0:11:19.6]} 13... e5 {[%clk 0:10:39.4]} 14. d5 {[%clk 0:11:20.5]}
14... Nd4 {[%clk 0:10:38.1]} 15. Nxd4 {[%clk 0:11:15.2]} 15... exd4 {[%clk
0:10:39.7]} 16. Na2 {[%clk 0:11:11.3]} 16... Qb6 {[%clk 0:10:24.2]} 17. Bg5
{[%clk 0:10:58.5]} 17... h6 {[%clk 0:10:24.2]} 18. Bh4 {[%clk 0:10:56.1]} 18...
Rfe8 {[%clk 0:10:11]} 19. Rac1 {[%clk 0:10:32.4]} 19... Rxc1 {[%clk 0:10:08]}
20. Nxc1 {[%clk 0:10:27.2]} 20... Nh7 {[%clk 0:09:58.4]} 21. Bxe7 {[%clk
0:10:26.3]} 21... Rxe7 {[%clk 0:09:57]} 22. Qf3 {[%clk 0:10:25.6]} 22... Nf6
{[%clk 0:09:22.8]} 23. Ne2 {[%clk 0:09:49.2]} 23... a5 {[%clk 0:08:56.3]} 24.
Ng3 {[%clk 0:09:37.7]} 24... b4 {[%clk 0:08:41.1]} 25. Nh5 {[%clk 0:08:41.6]}
25... Nxh5 {[%clk 0:08:27.4]} 26. Qxh5 {[%clk 0:08:40.8]} 26... bxa3 {[%clk
0:08:18.8]} 27. bxa3 {[%clk 0:08:41.4]} 27... Qb3 {[%clk 0:07:24.3]} 28. Rd1
{[%clk 0:07:14.5]} 28... g6 {[%clk 0:06:44.4]} 29. Qe2 {[%clk 0:07:00.4]} 29...
Qxa3 {[%clk 0:06:28.9]} 30. f4 {[%clk 0:06:57.7]} 30... Qc5 {[%clk 0:05:22.7]}
31. Rb1 {[%clk 0:06:51.9]} 31... Kg7 {[%clk 0:05:13.3]} 32. Kh2 {[%clk
0:06:51.4]} 32... f5 {[%clk 0:05:02.5]} 33. e5 {[%clk 0:03:14.4]} 33... Qxd5
{[%clk 0:05:02.5]} 34. Qd2 {[%clk 0:02:42.5]} 34... dxe5 {[%clk 0:04:48.4]} 35.
Bc4 {[%clk 0:02:36.1]} 35... Qxc4 {[%clk 0:04:13.8]} 36. Qxa5 {[%clk 0:02:21.5]}
36... Qe6 {[%clk 0:03:17.5]} 37. Rb6 {[%clk 0:02:11.9]} 37... Bc6 {[%clk
0:02:59.8]} 38. Qc5 {[%clk 0:02:00.8]} 38... Rc7 {[%clk 0:02:45.6]} 39. fxe5
{[%clk 0:01:58.9]} 39... d3 {[%clk 0:02:40.4]} 40. Qd4 {[%clk 0:01:45.7]} 40...
d2 {[%clk 0:02:33.5]} 41. Qxd2 {[%clk 0:01:33.2]} 41... Qxe5+ {[%clk 0:02:34.4]}
42. g3 {[%clk 0:01:05.5]} 42... Rd7 {[%clk 0:02:22.6]} 43. Qb2 {[%clk
0:00:55.2]} 43... Qxb2+ {[%clk 0:02:22.8]} 44. Rxb2 {[%clk 0:00:55.8]} 44... Kf6
{[%clk 0:02:21.6]} 45. h4 {[%clk 0:00:55.8]} 45... Rd3 {[%clk 0:02:21.9]} 46.
Rc2 {[%clk 0:00:55.8]} 46... Be4 {[%clk 0:02:17.4]} 47. Rb2 {[%clk 0:00:50.7]}
47... g5 {[%clk 0:02:13.9]} 48. h5 {[%clk 0:00:43.1]} 48... g4 {[%clk
0:02:08.9]} 49. Rb6+ {[%clk 0:00:38.1]} 49... Kg7 {[%clk 0:02:10.6]} 50. Rg6+
{[%clk 0:00:31.4]} 50... Kh7 {[%clk 0:02:01.5]} 51. Rb6 {[%clk 0:00:30.9]} 51...
Rd2+ {[%clk 0:02:01.7]} 52. Kg1 {[%clk 0:00:32.2]} 52... Rg2+ {[%clk 0:02:00.1]}
53. Kf1 {[%clk 0:00:33.4]} 53... Rxg3 {[%clk 0:01:57.9]} 54. Kf2 {[%clk
0:00:34.9]} 54... Rf3+ {[%clk 0:01:50.8]} 55. Ke2 {[%clk 0:00:33.5]} 55... Rh3
{[%clk 0:01:49.9]} 56. Rd6 {[%clk 0:00:28.1]} 56... Rxh5 {[%clk 0:01:49.2]} 57.
Ke3 {[%clk 0:00:23.9]} 57... Rg5 {[%clk 0:01:48.2]} 58. Kf4 {[%clk 0:00:23.8]}
58... Rh5 {[%clk 0:01:43.6]} 59. Rd7+ {[%clk 0:00:23.7]} 59... Kg6 {[%clk
0:01:45.3]} 60. Rd6+ {[%clk 0:00:24.9]} 60... Kf7 {[%clk 0:01:47.1]} 61. Ra6
{[%clk 0:00:11.4]} 61... Rh3 {[%clk 0:01:36.8]} 62. Ke5 {[%clk 0:00:12.7]} 62...
Rd3 {[%clk 0:01:28.9]} 63. Ra7+ {[%clk 0:00:12.1]} 63... Ke8 {[%clk 0:01:30.3]}
64. Ke6 {[%clk 0:00:03.6]} 64... Bd5+ {[%clk 0:01:29.8]} 0-1

[Event "Rapid della Domenica"]
[Site "Chess.com"]
[Date "2020.05.03"]
[Round "3"]
[White "pedrak"]
[Black "donaldnecesito"]
[Result "1-0"]
[WhiteElo "1691"]
[BlackElo "1640"]
[TimeControl "720+3"]
[EndTime "6:59:06 PDT"]
[Termination "pedrak ha vinto per abbandono"]

1. Nf3 {[%clk 0:12:01.6]} 1... Nf6 {[%clk 0:11:54.4]} 2. g3 {[%clk 0:12:02.1]}
2... d5 {[%clk 0:11:54.8]} 3. Bg2 {[%clk 0:12:03.4]} 3... c6 {[%clk 0:11:53.8]}
4. O-O {[%clk 0:12:04.2]} 4... e6 {[%clk 0:11:51.9]} 5. d3 {[%clk 0:12:05.8]}
5... Be7 {[%clk 0:11:52.2]} 6. c3 {[%clk 0:12:02.6]} 6... O-O {[%clk 0:11:53.3]}
7. Nbd2 {[%clk 0:12:03.9]} 7... Nbd7 {[%clk 0:11:55]} 8. e4 {[%clk 0:12:05.1]}
8... dxe4 {[%clk 0:11:54.3]} 9. dxe4 {[%clk 0:12:06.3]} 9... Qc7 {[%clk
0:11:55.6]} 10. Qc2 {[%clk 0:12:06.8]} 10... Ne5 {[%clk 0:11:54.4]} 11. Re1
{[%clk 0:12:04.6]} 11... b6 {[%clk 0:11:47.9]} 12. Nxe5 {[%clk 0:12:03.3]} 12...
Qxe5 {[%clk 0:11:48.9]} 13. Nc4 {[%clk 0:11:52.9]} 13... Qc5 {[%clk 0:11:38]}
14. b3 {[%clk 0:11:50.2]} 14... Ba6 {[%clk 0:11:35.3]} 15. Ba3 {[%clk
0:11:44.7]} 15... Qxa3 {[%clk 0:11:29.3]} 16. Nxa3 {[%clk 0:11:45.4]} 16... Bxa3
{[%clk 0:11:31.8]} 17. b4 {[%clk 0:11:29.7]} 17... Bc4 {[%clk 0:11:27.1]} 18.
Rad1 {[%clk 0:11:18.2]} 18... a5 {[%clk 0:11:27.4]} 19. Rb1 {[%clk 0:10:25.6]}
19... Rfd8 {[%clk 0:11:15.4]} 20. Red1 {[%clk 0:10:26.9]} 20... c5 {[%clk
0:11:00.6]} 21. bxa5 {[%clk 0:10:18.1]} 21... bxa5 {[%clk 0:10:39]} 22. Rxd8+
{[%clk 0:09:53.1]} 22... Rxd8 {[%clk 0:10:39.2]} 23. Rd1 {[%clk 0:09:48.4]}
23... Rxd1+ {[%clk 0:10:16]} 24. Qxd1 {[%clk 0:09:49.6]} 24... Bb5 {[%clk
0:10:17.9]} 25. Qb3 {[%clk 0:09:49.1]} 25... Bb4 {[%clk 0:10:16]} 26. cxb4
{[%clk 0:09:50.3]} 26... axb4 {[%clk 0:10:17.5]} 27. a3 {[%clk 0:09:48.4]} 1-0

[Event "Rapid della Domenica"]
[Site "Chess.com"]
[Date "2020.05.03"]
[Round "3"]
[White "ferrariand"]
[Black "laremaro"]
[Result "1-0"]
[WhiteElo "1513"]
[BlackElo "1568"]
[TimeControl "720+3"]
[EndTime "6:59:40 PDT"]
[Termination "ferrariand ha vinto per abbandono"]

1. e4 {[%clk 0:12:02.9]} 1... d5 {[%clk 0:11:59.6]} 2. exd5 {[%clk 0:11:57.3]}
2... Qxd5 {[%clk 0:11:38.1]} 3. Nc3 {[%clk 0:11:58.3]} 3... Qd6 {[%clk
0:11:36.6]} 4. d4 {[%clk 0:11:55.7]} 4... Nf6 {[%clk 0:11:36.5]} 5. Nf3 {[%clk
0:11:54.1]} 5... Bg4 {[%clk 0:11:38.3]} 6. Be2 {[%clk 0:11:51.4]} 6... c6 {[%clk
0:11:40.9]} 7. O-O {[%clk 0:11:50.1]} 7... e6 {[%clk 0:11:43.3]} 8. h3 {[%clk
0:11:38.3]} 8... Bh5 {[%clk 0:11:44.3]} 9. Be3 {[%clk 0:11:32.3]} 9... Nbd7
{[%clk 0:11:43.6]} 10. g4 {[%clk 0:11:17.3]} 10... Bg6 {[%clk 0:11:43.1]} 11.
Re1 {[%clk 0:10:50.4]} 11... Be7 {[%clk 0:11:39.7]} 12. Bd3 {[%clk 0:10:34.8]}
12... Nd5 {[%clk 0:10:35.2]} 13. Nxd5 {[%clk 0:10:29.5]} 13... cxd5 {[%clk
0:10:29.8]} 14. Qd2 {[%clk 0:10:10.3]} 14... Qc7 {[%clk 0:10:22.4]} 15. Bf4
{[%clk 0:10:05.8]} 15... Bd6 {[%clk 0:10:23.9]} 16. Bxd6 {[%clk 0:09:41.8]}
16... Qxd6 {[%clk 0:10:23.5]} 17. Bb5 {[%clk 0:09:35.1]} 17... O-O {[%clk
0:10:01.8]} 18. Bxd7 {[%clk 0:09:14.9]} 18... Qxd7 {[%clk 0:10:03.2]} 19. Ne5
{[%clk 0:09:16.7]} 19... f6 {[%clk 0:09:31.7]} 20. Nxd7 {[%clk 0:09:16.5]} 1-0

[Event "Rapid della Domenica"]
[Site "Chess.com"]
[Date "2020.05.03"]
[Round "3"]
[White "sirmale49"]
[Black "FrancescoZasa"]
[Result "1-0"]
[WhiteElo "1412"]
[BlackElo "585"]
[TimeControl "720+3"]
[EndTime "7:03:14 PDT"]
[Termination "sirmale49 ha vinto per scaccomatto"]

1. e4 {[%clk 0:12:02.9]} 1... d5 {[%clk 0:12:02.9]} 2. e5 {[%clk 0:12:02.7]}
2... d4 {[%clk 0:12:05.8]} 3. Nf3 {[%clk 0:12:03.7]} 3... d3 {[%clk 0:12:08.7]}
4. Bxd3 {[%clk 0:12:03.5]} 4... f6 {[%clk 0:12:01.3]} 5. exf6 {[%clk 0:12:02.7]}
5... gxf6 {[%clk 0:12:01.5]} 6. O-O {[%clk 0:12:03.4]} 6... e5 {[%clk
0:11:59.9]} 7. Be4 {[%clk 0:12:01.8]} 7... Nh6 {[%clk 0:11:39.4]} 8. c3 {[%clk
0:11:55.7]} 8... Ng4 {[%clk 0:11:42.3]} 9. Qa4+ {[%clk 0:11:51.6]} 9... c6
{[%clk 0:11:38.3]} 10. Re1 {[%clk 0:11:43.8]} 10... Qd7 {[%clk 0:11:37.1]} 11.
d4 {[%clk 0:11:35.5]} 11... f5 {[%clk 0:11:37.3]} 12. Bd3 {[%clk 0:11:23.9]}
12... e4 {[%clk 0:11:11.1]} 13. Ng5 {[%clk 0:10:48.6]} 13... Be7 {[%clk
0:11:02.3]} 14. Be2 {[%clk 0:10:42.5]} 14... h6 {[%clk 0:10:51.1]} 15. Bxg4
{[%clk 0:10:27.5]} 15... fxg4 {[%clk 0:10:49.1]} 16. Nxe4 {[%clk 0:10:23.7]}
16... c5 {[%clk 0:10:42.8]} 17. Qxd7+ {[%clk 0:10:18.3]} 17... Nxd7 {[%clk
0:10:44.7]} 18. Nd6+ {[%clk 0:09:59]} 18... Kd8 {[%clk 0:10:36.2]} 19. Nf7+
{[%clk 0:09:57.9]} 19... Kc7 {[%clk 0:10:22.8]} 20. Nxh8 {[%clk 0:09:55.4]}
20... Bg5 {[%clk 0:10:15.4]} 21. Bxg5 {[%clk 0:09:54.7]} 21... hxg5 {[%clk
0:10:16.2]} 22. dxc5 {[%clk 0:09:51.4]} 22... b6 {[%clk 0:10:13.6]} 23. cxb6+
{[%clk 0:09:48.5]} 23... axb6 {[%clk 0:10:15.9]} 24. Nd2 {[%clk 0:09:47.6]}
24... Ba6 {[%clk 0:10:03.6]} 25. Ne4 {[%clk 0:09:42.8]} 25... Rxh8 {[%clk
0:10:04.3]} 26. Nxg5 {[%clk 0:09:42]} 26... Rg8 {[%clk 0:10:03.1]} 27. Ne6+
{[%clk 0:09:26.4]} 27... Kb7 {[%clk 0:09:46.4]} 28. Rad1 {[%clk 0:09:24.9]}
28... Nf6 {[%clk 0:09:40.3]} 29. Nf4 {[%clk 0:09:04.2]} 29... Bb5 {[%clk
0:09:25.2]} 30. Re7+ {[%clk 0:08:57.4]} 30... Ka6 {[%clk 0:09:14.7]} 31. b3
{[%clk 0:08:49.6]} 31... Be2 {[%clk 0:08:39.3]} 32. Nxe2 {[%clk 0:08:46.7]}
32... b5 {[%clk 0:08:33.6]} 33. Re6+ {[%clk 0:08:45.3]} 33... Ka5 {[%clk
0:08:18.8]} 34. b4+ {[%clk 0:08:44.6]} 34... Ka4 {[%clk 0:08:17.6]} 35. Ra6#
{[%clk 0:08:45.1]} 1-0

[Event "Rapid della Domenica"]
[Site "Chess.com"]
[Date "2020.05.03"]
[Round "3"]
[White "OMatteoWuO"]
[Black "MarcoCiva"]
[Result "1/2-1/2"]
[WhiteElo "1185"]
[BlackElo "1403"]
[TimeControl "720+3"]
[EndTime "7:04:20 PDT"]
[Termination "Patta d'accordo"]

1. d4 {[%clk 0:12:02.9]} 1... f5 {[%clk 0:11:54.6]} 2. c4 {[%clk 0:11:54.1]}
2... Nf6 {[%clk 0:11:52.3]} 3. Nc3 {[%clk 0:11:55.1]} 3... e6 {[%clk 0:11:50.1]}
4. Bg5 {[%clk 0:11:41.7]} 4... Be7 {[%clk 0:11:46.7]} 5. e3 {[%clk 0:11:41.4]}
5... O-O {[%clk 0:11:44.9]} 6. Bd3 {[%clk 0:11:21.4]} 6... b6 {[%clk 0:11:42.3]}
7. Nf3 {[%clk 0:11:17.4]} 7... Bb7 {[%clk 0:11:39.9]} 8. Qe2 {[%clk 0:11:11.1]}
8... Nc6 {[%clk 0:11:36.3]} 9. a3 {[%clk 0:11:00.3]} 9... Na5 {[%clk 0:11:34.5]}
10. Bxf6 {[%clk 0:10:52.3]} 10... Bxf6 {[%clk 0:11:32.1]} 11. O-O {[%clk
0:10:45]} 11... c5 {[%clk 0:11:29.4]} 12. Ne5 {[%clk 0:10:10.9]} 12... Nb3
{[%clk 0:11:18]} 13. Nb5 {[%clk 0:09:35.3]} 13... d6 {[%clk 0:11:10]} 14. Rad1
{[%clk 0:09:03.3]} 14... dxe5 {[%clk 0:10:59.2]} 15. dxe5 {[%clk 0:09:04.5]}
15... Bxe5 {[%clk 0:10:47.8]} 16. Bc2 {[%clk 0:09:06]} 16... Qh4 {[%clk
0:10:43.3]} 17. f4 {[%clk 0:08:57.3]} 17... Nc1 {[%clk 0:09:29.5]} 18. Rxc1
{[%clk 0:08:36.8]} 18... Bxb2 {[%clk 0:09:28]} 19. Rcd1 {[%clk 0:08:35.6]} 19...
Qf6 {[%clk 0:09:24.8]} 20. Nd6 {[%clk 0:08:04.2]} 20... Bc6 {[%clk 0:09:21.4]}
21. e4 {[%clk 0:07:43.1]} 21... Bd4+ {[%clk 0:09:18.4]} 22. Kh1 {[%clk
0:07:32.2]} 22... Rad8 {[%clk 0:09:14.8]} 23. e5 {[%clk 0:07:22.7]} 23... Qg6
{[%clk 0:08:51.5]} 24. Nb5 {[%clk 0:06:50.8]} 24... Bxb5 {[%clk 0:08:23.6]} 25.
cxb5 {[%clk 0:06:52.2]} 25... Rf7 {[%clk 0:08:21.3]} 26. Bb3 {[%clk 0:06:52]}
26... Re7 {[%clk 0:08:17.9]} 27. Rf3 {[%clk 0:06:42.8]} 1/2-1/2

[Event "Rapid della Domenica"]
[Site "Chess.com"]
[Date "2020.05.03"]
[Round "3"]
[White "giulioscaglione"]
[Black "toninoiuorio"]
[Result "1/2-1/2"]
[WhiteElo "1407"]
[BlackElo "1478"]
[TimeControl "720+3"]
[EndTime "7:05:18 PDT"]
[Termination "Partita patta per ripetizione di mosse"]

1. b3 {[%clk 0:11:50.4]} 1... Nf6 {[%clk 0:12:00.7]} 2. Bb2 {[%clk 0:11:51.9]}
2... e6 {[%clk 0:12:03]} 3. e3 {[%clk 0:11:52.9]} 3... d5 {[%clk 0:12:05]} 4.
Ne2 {[%clk 0:11:54.3]} 4... Bd6 {[%clk 0:12:06.7]} 5. Ng3 {[%clk 0:11:55.3]}
5... O-O {[%clk 0:12:07.7]} 6. Be2 {[%clk 0:11:56.9]} 6... c5 {[%clk 0:12:08.2]}
7. d3 {[%clk 0:11:58.5]} 7... Nbd7 {[%clk 0:12:08.9]} 8. Nd2 {[%clk 0:12:00.4]}
8... b5 {[%clk 0:12:06.5]} 9. Bf3 {[%clk 0:12:02]} 9... Qb6 {[%clk 0:12:07.7]}
10. O-O {[%clk 0:12:03.5]} 10... Bb7 {[%clk 0:12:08.6]} 11. Re1 {[%clk 0:12:05]}
11... Rfd8 {[%clk 0:12:09.9]} 12. e4 {[%clk 0:12:06.6]} 12... dxe4 {[%clk
0:12:11.2]} 13. Ndxe4 {[%clk 0:12:03.6]} 13... Nxe4 {[%clk 0:12:11.8]} 14. Bxe4
{[%clk 0:12:02.2]} 14... Bxg3 {[%clk 0:12:11.6]} 15. Bxb7 {[%clk 0:12:01]} 15...
Bxf2+ {[%clk 0:12:10.6]} 16. Kxf2 {[%clk 0:12:00.2]} 16... Qxb7 {[%clk
0:12:10.3]} 17. Qg4 {[%clk 0:11:55.6]} 17... g6 {[%clk 0:11:45.5]} 18. Qh4
{[%clk 0:11:43.7]} 18... Qd5 {[%clk 0:11:44.9]} 19. Qh6 {[%clk 0:11:31.1]} 19...
Qf5+ {[%clk 0:11:45.9]} 20. Kg1 {[%clk 0:11:28.9]} 20... e5 {[%clk 0:11:45.2]}
21. Rf1 {[%clk 0:11:29.4]} 21... Qe6 {[%clk 0:11:42.4]} 22. Rae1 {[%clk
0:11:07]} 22... f6 {[%clk 0:11:43.5]} 23. Qe3 {[%clk 0:10:33.5]} 23... Re8
{[%clk 0:11:28]} 24. c4 {[%clk 0:10:13.4]} 24... bxc4 {[%clk 0:11:23.4]} 25.
dxc4 {[%clk 0:10:15]} 25... a5 {[%clk 0:11:21.1]} 26. a4 {[%clk 0:10:11.7]}
26... Rab8 {[%clk 0:11:17.9]} 27. Rd1 {[%clk 0:10:11.5]} 27... Rb6 {[%clk
0:11:10.4]} 28. Qd3 {[%clk 0:10:06.2]} 28... Re7 {[%clk 0:10:57.9]} 29. Rf2
{[%clk 0:09:49.3]} 29... Kf7 {[%clk 0:10:56]} 30. Rfd2 {[%clk 0:09:50.8]} 30...
Nf8 {[%clk 0:10:41.3]} 31. Qd5 {[%clk 0:09:48.8]} 31... Qxd5 {[%clk 0:10:34.5]}
32. cxd5 {[%clk 0:09:36.4]} 32... Rd7 {[%clk 0:10:29.2]} 33. Ba3 {[%clk
0:09:23.8]} 33... Rxb3 {[%clk 0:10:28.4]} 34. Bxc5 {[%clk 0:09:25.2]} 34... f5
{[%clk 0:10:00]} 35. Rc2 {[%clk 0:09:14.3]} 35... g5 {[%clk 0:09:51.2]} 36. Bxf8
{[%clk 0:08:59.5]} 36... Kxf8 {[%clk 0:09:50.2]} 37. Rc8+ {[%clk 0:09:02.4]}
37... Kf7 {[%clk 0:09:50]} 38. d6 {[%clk 0:08:40.3]} 38... Rb4 {[%clk
0:09:39.7]} 39. Rc7 {[%clk 0:08:40.2]} 39... Ke6 {[%clk 0:09:33.8]} 40. Rxd7
{[%clk 0:08:24.9]} 40... Kxd7 {[%clk 0:09:34]} 41. Rd5 {[%clk 0:08:26.5]} 41...
Rxa4 {[%clk 0:09:12.9]} 42. Rxe5 {[%clk 0:08:27.8]} 42... Kxd6 {[%clk
0:09:10.1]} 43. Rxf5 {[%clk 0:08:29.5]} 43... h6 {[%clk 0:09:12.1]} 44. Rf6+
{[%clk 0:08:30.5]} 44... Ke5 {[%clk 0:09:13.7]} 45. Rxh6 {[%clk 0:08:32.7]}
45... Rf4 {[%clk 0:09:10.9]} 46. Ra6 {[%clk 0:08:32.1]} 46... a4 {[%clk
0:09:11.2]} 47. g3 {[%clk 0:08:34.3]} 47... Rb4 {[%clk 0:09:08.2]} 48. Ra5+
{[%clk 0:08:21]} 48... Kf6 {[%clk 0:09:08.1]} 49. h3 {[%clk 0:08:03.6]} 49...
Kg6 {[%clk 0:09:08.3]} 50. g4 {[%clk 0:08:02.3]} 50... Rb1+ {[%clk 0:08:48.2]}
51. Kg2 {[%clk 0:08:03.3]} 51... Rb2+ {[%clk 0:08:50.5]} 52. Kg1 {[%clk
0:08:04.6]} 52... Rb1+ {[%clk 0:08:52.1]} 53. Kg2 {[%clk 0:08:06.3]} 53... Rb2+
{[%clk 0:08:50.8]} 54. Kg1 {[%clk 0:08:08.1]} 54... Rb1+ {[%clk 0:08:47.9]}
1/2-1/2

[Event "Rapid della Domenica"]
[Site "Chess.com"]
[Date "2020.05.03"]
[Round "3"]
[White "moha1812med"]
[Black "sergiodone"]
[Result "0-1"]
[WhiteElo "1016"]
[BlackElo "1490"]
[TimeControl "720+3"]
[EndTime "7:06:23 PDT"]
[Termination "sergiodone ha vinto per abbandono"]

1. d4 {[%clk 0:12:02.9]} 1... Nf6 {[%clk 0:12:00]} 2. c4 {[%clk 0:12:00.2]} 2...
c5 {[%clk 0:11:58.5]} 3. Nf3 {[%clk 0:11:33.6]} 3... b6 {[%clk 0:11:46.1]} 4.
Bf4 {[%clk 0:11:20.5]} 4... d6 {[%clk 0:11:47.7]} 5. e3 {[%clk 0:11:20.8]} 5...
Bb7 {[%clk 0:11:48.4]} 6. Bd3 {[%clk 0:11:15.8]} 6... g6 {[%clk 0:11:49.5]} 7.
O-O {[%clk 0:11:13.1]} 7... Bg7 {[%clk 0:11:51.3]} 8. Nc3 {[%clk 0:11:11.3]}
8... Nbd7 {[%clk 0:11:49.5]} 9. h3 {[%clk 0:10:54.2]} 9... O-O {[%clk
0:11:50.1]} 10. Ng5 {[%clk 0:10:31.7]} 10... cxd4 {[%clk 0:11:39.3]} 11. exd4
{[%clk 0:10:20.4]} 11... e5 {[%clk 0:11:40.1]} 12. dxe5 {[%clk 0:10:10]} 12...
Nxe5 {[%clk 0:11:41.5]} 13. Be4 {[%clk 0:10:08.2]} 13... Bxe4 {[%clk 0:11:08.3]}
14. Ngxe4 {[%clk 0:10:07.7]} 14... Nxe4 {[%clk 0:10:58.3]} 15. Nxe4 {[%clk
0:10:09.5]} 15... Nxc4 {[%clk 0:10:44.5]} 16. Bxd6 {[%clk 0:08:38.2]} 16... Nxd6
{[%clk 0:10:44.4]} 17. Nxd6 {[%clk 0:08:38.8]} 17... Qf6 {[%clk 0:10:43.5]} 18.
Rb1 {[%clk 0:08:29.8]} 18... Rfd8 {[%clk 0:10:43.5]} 19. Ne4 {[%clk 0:08:04.5]}
19... Qf5 {[%clk 0:09:30.1]} 20. Qe1 {[%clk 0:07:37.6]} 20... Re8 {[%clk
0:09:21.8]} 21. f3 {[%clk 0:07:36.3]} 21... Qb5 {[%clk 0:08:59.1]} 22. Qg3
{[%clk 0:07:05.1]} 22... Rad8 {[%clk 0:08:31.5]} 23. Nd6 {[%clk 0:06:47.4]}
23... Qc5+ {[%clk 0:08:30.9]} 24. Kh2 {[%clk 0:06:01.5]} 24... Qxd6 {[%clk
0:08:32.1]} 25. Rbd1 {[%clk 0:06:02.5]} 25... Qxg3+ {[%clk 0:08:33]} 26. Kxg3
{[%clk 0:06:04.1]} 26... Rxd1 {[%clk 0:08:30.2]} 27. Rxd1 {[%clk 0:06:04.2]}
27... Kf8 {[%clk 0:08:22.7]} 28. Rd7 {[%clk 0:06:03.6]} 28... a5 {[%clk
0:08:17.6]} 29. a4 {[%clk 0:05:59.9]} 29... Bxb2 {[%clk 0:08:12.5]} 30. Rb7
{[%clk 0:06:00.8]} 30... Bd4 {[%clk 0:08:13.3]} 31. Rd7 {[%clk 0:05:50.1]} 31...
Bc5 {[%clk 0:08:14.4]} 32. Rc7 {[%clk 0:05:49.6]} 32... h5 {[%clk 0:08:10.6]}
0-1

[Event "Rapid della Domenica"]
[Site "Chess.com"]
[Date "2020.05.03"]
[Round "3"]
[White "BAKR1980"]
[Black "crippo"]
[Result "1-0"]
[WhiteElo "1635"]
[BlackElo "1478"]
[TimeControl "720+3"]
[EndTime "7:12:01 PDT"]
[Termination "BAKR1980 ha vinto per scaccomatto"]

1. e4 {[%clk 0:12:02.9]} 1... e5 {[%clk 0:11:49.7]} 2. Nf3 {[%clk 0:12:03.8]}
2... Nc6 {[%clk 0:11:50.6]} 3. Bc4 {[%clk 0:12:05.8]} 3... Be7 {[%clk
0:11:51.8]} 4. O-O {[%clk 0:12:07.3]} 4... d6 {[%clk 0:11:53.5]} 5. c3 {[%clk
0:12:08.2]} 5... Nf6 {[%clk 0:11:55.4]} 6. Re1 {[%clk 0:12:08]} 6... O-O {[%clk
0:11:56.4]} 7. h3 {[%clk 0:12:10]} 7... h6 {[%clk 0:11:57.5]} 8. d4 {[%clk
0:12:11.5]} 8... exd4 {[%clk 0:11:58.6]} 9. cxd4 {[%clk 0:12:13.3]} 9... Nh7
{[%clk 0:12:00.2]} 10. Nc3 {[%clk 0:11:56.3]} 10... Ng5 {[%clk 0:12:01.6]} 11.
Be3 {[%clk 0:11:36.3]} 11... Bf6 {[%clk 0:11:37.8]} 12. Nxg5 {[%clk 0:10:58.7]}
12... Bxg5 {[%clk 0:11:38.2]} 13. Nd5 {[%clk 0:10:57.3]} 13... Be6 {[%clk
0:11:36.5]} 14. b3 {[%clk 0:10:43.1]} 14... Na5 {[%clk 0:11:32.6]} 15. Bxg5
{[%clk 0:10:34.8]} 15... hxg5 {[%clk 0:11:32.6]} 16. Qd2 {[%clk 0:10:15.1]}
16... c6 {[%clk 0:11:23.8]} 17. Ne3 {[%clk 0:10:06.4]} 17... Nxc4 {[%clk
0:11:24.2]} 18. bxc4 {[%clk 0:10:07.5]} 18... Qf6 {[%clk 0:10:27.1]} 19. d5
{[%clk 0:09:22]} 19... cxd5 {[%clk 0:10:25.7]} 20. cxd5 {[%clk 0:09:22.7]} 20...
Bd7 {[%clk 0:10:20.8]} 21. Qb4 {[%clk 0:09:08.8]} 21... b6 {[%clk 0:10:18.2]}
22. Nc4 {[%clk 0:09:05.7]} 22... Bxh3 {[%clk 0:09:18.4]} 23. gxh3 {[%clk
0:08:58.9]} 23... Rfd8 {[%clk 0:09:09.3]} 24. Rad1 {[%clk 0:08:16.4]} 24... Qf3
{[%clk 0:08:45.4]} 25. Qb3 {[%clk 0:07:55.4]} 25... Qh5 {[%clk 0:08:39.6]} 26.
Rd3 {[%clk 0:07:42]} 26... Rac8 {[%clk 0:08:39.1]} 27. Qb4 {[%clk 0:07:07.1]}
27... Qg6 {[%clk 0:08:30.8]} 28. Rg3 {[%clk 0:06:52.5]} 28... Rc5 {[%clk
0:08:12.1]} 29. e5 {[%clk 0:05:01.4]} 29... Rxd5 {[%clk 0:08:12.2]} 30. Nxd6
{[%clk 0:04:42.1]} 30... Rd3 {[%clk 0:07:16.3]} 31. Qc4 {[%clk 0:04:20.5]} 31...
Rxg3+ {[%clk 0:07:15.5]} 32. fxg3 {[%clk 0:04:22.1]} 32... Qh5 {[%clk
0:06:33.4]} 33. Kg2 {[%clk 0:03:59.3]} 33... g4 {[%clk 0:06:30]} 34. Qxg4 {[%clk
0:03:49.5]} 34... Qh7 {[%clk 0:06:28.6]} 35. Qe4 {[%clk 0:03:42.3]} 35... Qh6
{[%clk 0:06:27.3]} 36. Rf1 {[%clk 0:03:29.7]} 36... Rd7 {[%clk 0:05:57.7]} 37.
Qd5 {[%clk 0:03:21.2]} 37... Qg6 {[%clk 0:05:53.5]} 38. Rf2 {[%clk 0:03:10.7]}
38... Kf8 {[%clk 0:05:36]} 39. Qa8+ {[%clk 0:03:05.1]} 39... Ke7 {[%clk
0:05:33.4]} 40. Qe8# {[%clk 0:03:04.2]} 1-0